bitfinex/quotes_SOLUSD_20220114
["timestamp","ask_amount","ask_price","bid_price","bid_amount"]
[1642198443614,1.94217202,146.98,146.91,19.4392]
[1642198448017,2.20217202,146.98,146.91,19.4392]
[1642198448222,2.20217202,146.98,146.91,19.1892]
[1642198449539,2.20217202,146.98,146.91,19.4392]
[1642198449739,0.26,146.98,146.91,19.4392]
[1642198449940,4.66417202,147.0,146.91,19.4392]
[1642198453747,4.92417202,147.0,146.91,19.4392]
[1642198453943,1.94217202,146.98,146.91,19.4392]
[1642198455248,1.94217202,146.98,146.91,19.1792]
[1642198455450,1.94217202,146.98,146.91,18.9292]
[1642198456047,1.94217202,146.98,146.91,16.2072]
[1642198456849,1.94217202,146.98,146.91,16.4572]
[1642198457248,1.94217202,146.97,146.91,16.4572]
[1642198460150,1.94217202,146.96,146.91,16.4572]
[1642198462849,1.94217202,146.97,146.91,16.4572]
[1642198463050,1.94217202,146.97,146.91,10.4572]
[1642198463954,2.20217202,146.97,146.91,10.4572]
[1642198465453,1.94217202,146.96,146.91,10.4572]
[1642198466351,1.94217202,146.96,146.91,0.25]
[1642198466551,1.94217202,146.96,146.89,10.4588]
[1642198469758,1.94217202,146.95,146.89,10.4588]
[1642198471860,1.94217202,146.95,146.89,16.4588]
[1642198472158,1.94217202,146.96,146.89,16.4588]
[1642198473560,2.20217202,146.96,146.89,16.4588]
[1642198474160,2.20217202,146.96,146.89,10.4588]
[1642198475961,2.20217202,146.96,146.89,16.4588]
[1642198481670,2.20217202,146.96,146.89,10.4588]
[1642198485594,0.26,146.96,146.89,10.4588]
[1642198485993,69.96217202,146.97,146.89,10.4588]
[1642198486195,69.96217202,146.97,146.89,16.4588]
[1642198486396,69.96217202,146.97,146.89,10.4588]
[1642198487013,75.96217202,146.97,146.89,16.4588]
[1642198487195,2.722,146.96,146.89,16.4588]
[1642198487995,2.982,146.96,146.89,16.4588]
[1642198489198,2.722,146.96,146.89,16.4588]
[1642198489398,1.94217202,146.97,146.89,16.4588]
[1642198489798,7.94217202,146.97,146.89,16.4588]
[1642198489997,1.94217202,146.97,146.89,16.4588]
[1642198490597,2.20217202,146.97,146.89,16.4588]
[1642198491103,8.20217202,146.97,146.89,16.4588]
[1642198492006,2.20217202,146.97,146.89,16.4588]
[1642198492208,8.20217202,146.97,146.89,16.4588]
[1642198492409,2.20217202,146.97,146.89,16.4588]
[1642198492907,8.20217202,146.97,146.89,16.4588]
[1642198493108,2.20217202,146.97,146.89,16.4588]
[1642198494513,70.22217202,146.97,146.89,10.4588]
[1642198495910,2.20217202,146.97,146.89,10.4588]
[1642198503017,1.94217202,146.96,146.89,10.4588]
[1642198504020,2.20217202,146.96,146.89,10.4588]
[1642198505121,0.26,146.96,146.89,10.4588]
[1642198505321,0.26,146.96,146.88,2.722]
[1642198505520,2.722,146.96,146.87,11.74717583]
[1642198505720,76.742,146.96,146.87,1.53707583]
[1642198505920,76.992,146.96,146.87,1.53707583]
[1642198506732,76.992,146.96,146.87,1.78707583]
[1642198506923,1.94217202,146.94,146.87,0.25]
[1642198507124,12.9349,146.93,146.87,0.25]
[1642198507325,12.9349,146.93,146.84,1.78707583]
[1642198507523,19.1849,146.93,146.84,1.78707583]
[1642198509325,0.17507865,146.88,146.84,1.78707583]
[1642198509525,0.3501573,146.88,146.84,1.78707583]
[1642198514338,0.17507865,146.88,146.84,1.78707583]
[1642198514737,0.17507865,146.86,146.84,1.78707583]
[1642198514938,0.17507865,146.86,146.84,11.99947583]
[1642198515739,0.17507865,146.86,146.84,17.99947583]
[1642198516443,0.17507865,146.86,146.84,11.99947583]
[1642198516966,0.17507865,146.86,146.84,17.99947583]
[1642198517271,0.17507865,146.86,146.85,12.9334]
[1642198517465,0.17507865,146.86,146.85,19.1834]
[1642198518066,0.17507865,146.86,146.85,20.72047583]
[1642198519167,0.17507865,146.86,146.85,19.1834]
[1642198520471,0.3501573,146.86,146.85,19.1834]
[1642198521273,2.20217202,146.95,146.85,19.1834]
[1642198521472,2.20217202,146.95,146.85,21.14417588]
[1642198522274,0.26,146.95,146.91,10.2072]
[1642198522471,1.94217202,146.96,146.91,10.4572]
[1642198522676,2.722,146.95,146.91,19.2532]
[1642198522872,1.94217202,146.96,146.91,19.2532]
[1642198523276,1.94217202,146.97,146.91,19.2532]
[1642198523873,1.94217202,146.97,146.91,10.4572]
[1642198524673,2.722,146.98,146.91,12.39953984]
[1642198524875,2.722,146.98,146.91,44.25719227]
[1642198525073,2.722,146.98,146.91,44.51719227]
[1642198525278,450.8,146.99,146.91,20.36031572]
[1642198525874,450.8,146.99,146.92,1.94233984]
[1642198526076,450.8,146.99,146.95,10.2032]
[1642198526477,450.8,146.99,146.95,16.4532]
[1642198527777,450.8,146.99,146.95,10.4532]
[1642198528380,451.06,146.99,146.95,10.4532]
[1642198531081,451.06,146.99,146.95,16.4532]
[1642198531280,451.06,146.99,146.95,10.4532]
[1642198531580,450.8,146.99,146.95,10.4532]
[1642198532079,450.8,146.99,146.95,12.65553984]
[1642198532482,450.8,146.99,146.95,21.37653984]
[1642198533781,450.8,146.99,146.96,1.94233984]
[1642198533981,450.8,146.99,146.97,10.2012]
[1642198534385,450.8,146.99,146.97,16.7112]
[1642198534784,450.8,146.99,146.97,18.65353984]
[1642198537690,450.8,146.99,146.98,1.94233984]
[1642198537889,450.8,146.99,146.98,12.14333984]
[1642198538093,450.8,146.99,146.98,12.65333984]
[1642198538590,450.8,146.99,146.98,12.39333984]
[1642198541794,453.82252397,146.99,146.98,12.39333984]
[1642198542194,456.85468827,146.99,146.98,12.39333984]
[1642198542398,456.85468827,146.99,146.98,12.65333984]
[1642198542597,450.8,146.99,146.98,12.65333984]
[1642198544527,450.8,146.99,146.98,18.65333984]
[1642198544727,450.8,146.99,146.98,12.65333984]
[1642198545327,450.8,146.99,146.98,12.39333984]
[1642198545528,453.82252397,146.99,146.98,12.39333984]
[1642198546128,453.8321643,146.99,146.98,12.39333984]
[1642198546727,456.85468827,146.99,146.98,12.65333984]
[1642198547630,456.85468827,146.99,146.98,10.711]
[1642198547831,3.02252397,146.99,146.98,10.711]
[1642198548031,2.721,147.06,146.98,10.711]
[1642198548435,2.721,147.06,146.98,12.65333984]
[1642198549032,2.721,147.06,146.98,18.65333984]
[1642198549832,2.721,147.06,146.98,18.39333984]
[1642198551432,2.721,147.06,146.98,16.451]
[1642198551835,2.981,147.06,146.98,16.451]
[1642198552235,4.92317202,147.06,146.98,16.451]
[1642198554236,4.66317202,147.06,146.98,16.451]
[1642198555439,4.92317202,147.06,146.98,16.451]
[1642198560241,4.92317202,147.06,146.98,10.451]
[1642198563344,4.92317202,147.06,146.98,10.201]
[1642198563546,34.04,147.05,146.97,4.66233984]
[1642198563747,2.72,147.04,146.97,1.94233984]
[1642198563946,34.04,147.03,146.97,1.94233984]
[1642198564152,2.721,147.02,146.96,1.94233984]
[1642198564547,2.971,147.02,146.96,1.94233984]
[1642198565048,4.91317202,147.02,146.96,1.94233984]
[1642198565247,4.91317202,147.02,146.93,1.94233984]
[1642198565448,39.17047202,147.02,146.94,10.2052]
[1642198566949,39.17047202,147.02,146.94,10.4552]
[1642198567350,28.71467202,147.02,146.94,10.4552]
[1642198567749,28.71467202,147.02,146.94,13.1762]
[1642198568048,28.71467202,147.02,146.94,19.1762]
[1642198568451,26.7725,147.02,146.94,21.11853984]
[1642198568750,24.0515,147.02,146.94,21.11853984]
[1642198569549,24.3115,147.02,146.94,21.11853984]
[1642198569950,24.3115,147.02,146.94,15.11853984]
[1642198570349,24.3115,147.02,146.94,21.11853984]
[1642198572253,24.3115,147.02,146.94,20.86853984]
[1642198572654,24.3115,147.02,146.94,14.86853984]
[1642198573353,24.3115,147.02,146.94,12.14753984]
[1642198573555,24.3115,147.02,146.94,12.39753984]
[1642198575254,24.5615,147.02,146.94,10.4552]
[1642198575753,2.721,147.01,146.94,10.4552]
[1642198577485,38.92057202,147.02,146.94,2.971]
[1642198578888,28.71467202,147.02,146.94,2.971]
[1642198579485,28.71467202,147.02,146.94,8.971]
[1642198579685,28.71467202,147.02,146.94,2.971]
[1642198580086,28.97467202,147.02,146.94,2.971]
[1642198580487,39.43007202,147.02,146.94,2.971]
[1642198581088,45.43007202,147.02,146.94,2.971]
[1642198581889,45.43007202,147.02,146.94,0.25]
[1642198582089,45.43007202,147.02,146.93,2.19233984]
[1642198582492,1.94217202,147.01,146.93,2.19233984]
[1642198582688,2.721,147.0,146.93,0.25]
[1642198582889,10.2079,146.99,146.93,0.25]
[1642198583088,10.2079,146.99,146.92,2.19233984]
[1642198583789,10.4579,146.99,146.92,2.19233984]
[1642198583990,10.4679,146.99,146.92,2.19233984]
[1642198584190,10.4679,146.99,146.93,2.721]
[1642198584389,0.26,146.99,146.93,2.721]
[1642198584588,0.26,146.99,146.93,2.971]
[1642198584789,26.02117202,147.0,146.93,0.25]
[1642198584991,26.28117202,147.0,146.93,0.25]
[1642198585490,24.339,147.0,146.92,15.11983984]
[1642198586292,24.339,147.0,146.92,13.1775]
[1642198586794,27.06,147.0,146.92,10.4565]
[1642198587696,37.2669,147.0,146.92,0.25]
[1642198587895,37.5169,147.0,146.92,0.25]
[1642198588096,43.5169,147.0,146.91,2.971]
[1642198588295,43.5169,147.0,146.91,0.25]
[1642198588497,450.8,147.04,146.92,68.02]
[1642198588799,10.3009,147.29,147.04,1.70077588]
[1642198589096,18.2626104,147.19,147.12,3.60363007]
[1642198589296,9.35992324,147.14,147.13,2.718]
[1642198589496,15.5416104,147.19,147.13,8.968]
[1642198589697,2.718,147.24,147.13,8.968]
[1642198589897,1.84799247,147.18,147.13,2.718]
[1642198590201,2.718,147.17,147.12,3.60363007]
[1642198590399,49.9033,147.23,147.12,3.60363007]
[1642198590697,117.9233,147.23,147.12,3.60363007]
[1642198590898,123.9233,147.23,147.12,3.60363007]
[1642198591300,10.1954,147.21,147.12,3.60363007]
[1642198591501,2.718,147.2,147.12,3.60363007]
[1642198591700,2.718,147.2,147.12,3.85363007]
[1642198591900,9.228,147.2,147.12,3.85363007]
[1642198592099,8.968,147.2,147.12,3.85363007]
[1642198592301,2.718,147.19,147.12,3.60363007]
[1642198592500,13.163,147.19,147.12,3.60363007]
[1642198594304,19.163,147.19,147.12,3.60363007]
[1642198594704,19.163,147.19,147.06,2.717]
[1642198594904,19.163,147.19,147.06,8.967]
[1642198595105,19.163,147.19,147.06,2.717]
[1642198595307,19.163,147.19,147.06,8.717]
[1642198595308,10.1984,147.14,147.06,8.717]
[1642198595735,10.1984,147.14,147.06,2.717]
[1642198595906,0.26,147.14,147.06,2.717]
[1642198596306,49.175,147.17,147.06,2.967]
[1642198596506,49.435,147.17,147.06,2.967]
[1642198597006,55.435,147.17,147.06,2.967]
[1642198597207,55.435,147.17,147.06,8.967]
[1642198597407,10.1968,147.16,147.06,19.1644]
[1642198597808,10.4468,147.16,147.06,19.1644]
[1642198599917,2.719,147.15,147.06,19.1644]
[1642198600317,2.969,147.15,147.06,19.1644]
[1642198600915,2.719,147.15,147.06,19.1644]
[1642198601219,0.26,147.16,147.06,19.1644]
[1642198601413,0.26,147.16,147.06,19.4244]
[1642198602014,497.006,147.17,147.06,19.4244]
[1642198602214,497.266,147.17,147.06,19.4244]
[1642198603648,497.516,147.17,147.06,19.1644]
[1642198604046,497.266,147.17,147.06,19.1644]
[1642198604249,497.516,147.17,147.06,19.1644]
[1642198605047,2.718,147.16,147.06,19.1644]
[1642198605448,2.968,147.16,147.06,19.1644]
[1642198605751,2.718,147.16,147.06,19.1644]
[1642198605949,2.968,147.16,147.06,19.4244]
[1642198606649,453.768,147.16,147.06,19.4244]
[1642198606848,453.518,147.16,147.06,19.4244]
[1642198607049,453.768,147.16,147.06,19.4244]
[1642198607549,453.518,147.16,147.06,13.4244]
[1642198607750,453.518,147.16,147.06,13.1644]
[1642198607950,453.768,147.16,147.06,13.1644]
[1642198608751,453.518,147.16,147.06,13.1644]
[1642198608952,453.778,147.16,147.06,13.1644]
[1642198609350,453.778,147.16,147.06,19.1644]
[1642198609551,453.778,147.16,147.06,19.4244]
[1642198609852,453.778,147.16,147.06,19.1644]
[1642198610453,453.518,147.16,147.06,19.1644]
[1642198611055,450.8,147.16,147.06,19.1644]
[1642198611554,450.8,147.16,147.06,19.4244]
[1642198611755,451.06,147.16,147.06,19.4244]
[1642198613360,451.06,147.16,147.06,19.1744]
[1642198613564,453.779,147.16,147.06,19.1744]
[1642198613763,453.779,147.16,147.06,18.9144]
[1642198613959,454.029,147.16,147.06,19.1744]
[1642198614158,453.519,147.16,147.06,19.1744]
[1642198614357,453.769,147.16,147.06,19.1744]
[1642198614760,453.769,147.16,147.06,19.4244]
[1642198615863,454.029,147.16,147.06,19.4244]
[1642198616060,453.519,147.16,147.06,19.4244]
[1642198616262,450.8,147.16,147.06,33.05727212]
[1642198616460,450.8,147.16,147.07,68.02]
[1642198616662,450.8,147.16,147.11,10.1905]
[1642198616862,450.8,147.16,147.12,2.718]
[1642198617061,450.8,147.16,147.12,9.228]
[1642198617265,450.8,147.16,147.12,6.51]
[1642198617562,450.8,147.15,147.12,0.25]
[1642198617764,3.0321643,147.14,147.13,10.1908]
[1642198617964,3.0321643,147.14,147.13,10.4408]
[1642198618864,450.8,147.15,147.13,10.7008]
[1642198619265,453.8321643,147.15,147.13,10.7008]
[1642198619673,456.85468827,147.15,147.13,10.4408]
[1642198620466,456.85468827,147.15,147.13,10.7008]
[1642198621468,456.85468827,147.15,147.13,10.4408]
[1642198624172,450.8,147.15,147.13,10.4408]
[1642198627077,450.8,147.15,147.13,16.4408]
[1642198627281,450.8,147.15,147.13,10.4408]
[1642198628581,6.05468827,147.14,147.13,10.4408]
[1642198628780,6.05468827,147.14,147.13,10.1908]
[1642198629281,6.05468827,147.14,147.11,10.1926]
[1642198629508,6.05468827,147.14,147.11,16.1926]
[1642198629803,450.8,147.15,147.11,16.1926]
[1642198630011,450.8,147.15,147.11,10.4426]
[1642198630605,450.8,147.15,147.11,16.4426]
[1642198631906,450.8,147.15,147.11,10.4426]
[1642198632306,450.8,147.15,147.11,16.4426]
[1642198632806,450.8,147.15,147.11,10.4426]
[1642198633007,450.8,147.15,147.11,16.4426]
[1642198633309,450.8,147.15,147.11,16.1926]
[1642198634011,450.8,147.15,147.11,6.0]
[1642198634409,2.718,147.14,147.09,16.1941]
[1642198634609,2.718,147.22,147.12,1.70077588]
[1642198634810,2.717,147.28,147.21,68.02]
[1642198635111,2.717,147.28,147.23,68.02]
[1642198635307,2.716,147.36,147.23,97.4977267]
[1642198635508,2.716,147.36,147.24,1.70077588]
[1642198635908,2.716,147.36,147.24,8.21077588]
[1642198636309,2.716,147.36,147.27,10.181]
[1642198636513,2.716,147.36,147.27,16.431]
[1642198636708,8.716,147.36,147.27,10.431]
[1642198636908,2.966,147.36,147.27,16.431]
[1642198637108,8.966,147.36,147.27,10.431]
[1642198637311,8.966,147.36,147.27,0.25]
[1642198637718,19.4098,147.36,147.25,0.25]
[1642198637912,19.1498,147.36,147.25,0.25]
[1642198638114,20.38260713,147.36,147.23,10.4352]
[1642198638512,3.87548142,147.35,147.23,10.4352]
[1642198638712,2.715,147.34,147.23,10.4352]
[1642198639114,2.965,147.34,147.23,10.4352]
[1642198639311,10.1856,147.33,147.23,10.4352]
[1642198639512,2.715,147.32,147.23,16.4352]
[1642198640513,2.975,147.32,147.23,16.4352]
[1642198640712,2.715,147.32,147.23,16.4352]
[1642198640913,2.715,147.32,147.23,18.13597588]
[1642198641113,2.716,147.35,147.23,18.13597588]
[1642198641313,2.716,147.35,147.23,26.86497588]
[1642198641512,8.966,147.35,147.23,26.86497588]
[1642198641716,0.25,147.35,147.23,26.60497588]
[1642198642111,2.715,147.34,147.23,26.60497588]
[1642198642312,2.715,147.34,147.23,18.13597588]
[1642198642513,2.975,147.34,147.23,18.13597588]
[1642198643113,3.225,147.34,147.23,18.13597588]
[1642198643914,3.225,147.34,147.23,17.63597588]
[1642198644115,13.4099,147.34,147.23,17.63597588]
[1642198644416,13.14262124,147.34,147.23,17.63597588]
[1642198644611,13.14262124,147.34,147.24,2.715]
[1642198644813,463.94262124,147.34,147.24,2.715]
[1642198645017,463.94262124,147.34,147.24,19.1498]
[1642198646015,453.49772124,147.34,147.24,19.1498]
[1642198647019,463.68252124,147.34,147.24,12.8998]
[1642198647219,469.68252124,147.34,147.22,10.1858]
[1642198648018,469.94252124,147.34,147.22,10.1858]
[1642198648217,469.69252124,147.34,147.22,10.1858]
[1642198648517,469.69252124,147.34,147.22,10.6958]
[1642198648818,14.06202742,147.33,147.22,10.4358]
[1642198649019,2.716,147.32,147.22,10.6958]
[1642198649621,6.84232742,147.32,147.22,10.4358]
[1642198649818,6.84232742,147.32,147.22,10.6958]
[1642198650018,7.10232742,147.32,147.22,10.6958]
[1642198650219,7.10232742,147.32,147.23,2.716]
[1642198650422,7.10232742,147.32,147.23,12.9015]
[1642198650620,7.10232742,147.32,147.23,13.1515]
[1642198650819,3.226,147.32,147.23,13.4115]
[1642198651220,3.226,147.32,147.23,13.1515]
[1642198652225,450.8,147.31,147.23,2.716]
[1642198652421,450.8,147.29,147.2,401.34973289]
[1642198652622,453.516,147.28,147.2,401.34973289]
[1642198653028,459.766,147.28,147.2,401.34973289]
[1642198653425,450.8,147.25,147.2,401.34973289]
[1642198653626,8.966,147.28,147.2,401.34973289]
[1642198653627,10.19,147.27,147.2,401.34973289]
[1642198653827,450.8,147.25,147.2,401.34973289]
[1642198654028,450.8,147.26,147.2,401.34973289]
[1642198654226,450.8,147.25,147.2,401.34973289]
[1642198654428,459.766,147.27,147.17,10.1892]
[1642198654625,451.05,147.25,147.18,0.25]
[1642198655929,451.31,147.25,147.17,10.4392]
[1642198657037,451.31,147.25,147.17,0.25]
[1642198657234,461.5008,147.25,147.17,0.25]
[1642198657438,461.5008,147.25,147.15,10.4405]
[1642198658636,461.2408,147.25,147.16,2.717]
[1642198659036,451.05,147.25,147.16,13.1573]
[1642198659237,451.05,147.25,147.16,10.7003]
[1642198659939,451.05,147.25,147.16,10.4503]
[1642198661336,451.05,147.25,147.16,10.7003]
[1642198662540,451.31,147.25,147.16,13.4173]
[1642198663865,451.31,147.25,147.16,13.1573]
[1642198665272,451.31,147.25,147.16,13.4173]
[1642198666369,451.31,147.25,147.16,13.1573]
[1642198666770,2.717,147.24,147.16,13.1573]
[1642198666970,2.967,147.24,147.16,13.1573]
[1642198667973,2.967,147.24,147.16,2.967]
[1642198668172,2.967,147.24,147.16,0.25]
[1642198668372,27.8899,147.24,147.16,0.25]
[1642198668572,27.8899,147.24,147.14,8.967]
[1642198668772,33.8899,147.24,147.14,2.967]
[1642198669173,33.8899,147.24,147.14,3.227]
[1642198669374,33.8899,147.24,147.15,10.191]
[1642198669575,33.8899,147.24,147.15,10.441]
[1642198670374,33.8899,147.24,147.15,9.941]
[1642198670774,44.3413,147.24,147.15,9.941]
[1642198671174,44.3413,147.24,147.15,0.25]
[1642198671473,44.3413,147.24,147.14,2.967]
[1642198671673,44.0813,147.24,147.14,2.967]
[1642198672375,44.0813,147.24,147.14,13.1587]
[1642198672775,112.1013,147.24,147.14,13.1587]
[1642198672974,112.3613,147.24,147.14,13.1587]
[1642198673778,112.3613,147.24,147.14,10.4417]
[1642198673976,112.3613,147.24,147.15,2.717]
[1642198674177,112.3613,147.24,147.15,12.908]
[1642198674376,112.3613,147.24,147.15,13.158]
[1642198674377,44.3413,147.24,147.15,13.158]
[1642198674777,44.3413,147.24,147.15,10.441]
[1642198675477,34.1499,147.24,147.15,10.441]
[1642198681790,44.3413,147.24,147.15,10.441]
[1642198685921,44.3413,147.24,147.15,10.441]
[1642198687821,44.3413,147.24,147.15,0.25]
[1642198688022,44.3413,147.24,147.13,13.159]
[1642198688225,563.1613,147.24,147.13,10.442]
[1642198688825,564.50582123,147.24,147.13,10.442]
[1642198692133,564.50582123,147.24,147.13,10.192]
[1642198692333,450.8,147.21,147.11,433.6578372]
[1642198692537,2.718,147.2,147.11,433.6578372]
[1642198692733,2.718,147.2,147.11,430.9408372]
[1642198692935,8.968,147.2,147.11,430.9408372]
[1642198693137,32.3485,147.2,147.11,430.9408372]
[1642198693537,32.3485,147.2,147.11,431.1908372]
[1642198696040,32.6085,147.2,147.11,431.1908372]
[1642198696437,32.3585,147.2,147.11,431.1908372]
[1642198697739,32.6085,147.2,147.11,431.1908372]
[1642198700142,483.4085,147.2,147.11,431.1908372]
[1642198703248,450.8,147.18,147.11,431.1908372]
[1642198703445,451.05,147.18,147.11,431.1908372]
[1642198704044,451.31,147.18,147.11,431.1908372]
[1642198706647,451.05,147.18,147.11,431.1908372]
[1642198706848,451.05,147.18,147.11,431.4508372]
[1642198707850,450.8,147.18,147.11,431.4508372]
[1642198708050,451.06,147.18,147.11,431.4508372]
[1642198708276,451.06,147.18,147.12,2.718]
[1642198708580,451.06,147.18,147.13,10.192]
[1642198708978,451.06,147.18,147.13,10.442]
[1642198709179,451.06,147.18,147.13,10.192]
[1642198709984,451.06,147.18,147.13,10.442]
[1642198710985,451.06,147.18,147.13,10.192]
[1642198711986,457.06,147.18,147.13,10.192]
[1642198714491,457.06,147.18,147.13,10.442]
[1642198717292,450.8,147.16,147.13,10.442]
[1642198717491,6.05468827,147.15,147.13,10.442]
[1642198717891,12.05468827,147.15,147.13,10.442]
[1642198718092,12.05468827,147.15,147.13,11.042]
[1642198718292,6.0,147.15,147.13,11.042]
[1642198718493,450.8,147.16,147.13,11.042]
[1642198719193,450.8,147.16,147.13,10.792]
[1642198719596,450.8,147.16,147.13,11.042]
[1642198719995,451.06,147.16,147.13,11.042]
[1642198720996,6.05468827,147.15,147.13,11.042]
[1642198721797,3.0321643,147.15,147.13,11.042]
[1642198723498,450.8,147.16,147.13,11.042]
[1642198723898,3.02252397,147.15,147.13,11.042]
[1642198724798,450.8,147.16,147.13,11.042]
[1642198724999,451.06,147.16,147.13,11.042]
[1642198725401,3.0321643,147.15,147.13,11.042]
[1642198725599,453.8321643,147.15,147.13,11.042]
[1642198727128,450.8,147.14,147.13,11.042]
[1642198728828,453.82252397,147.14,147.13,11.042]
[1642198729029,443.70391822,147.14,147.13,11.042]
[1642198729630,443.70391822,147.14,147.13,12.90925606]
[1642198730329,443.70391822,147.14,147.13,11.042]
[1642198731332,450.8,147.14,147.13,11.042]
[1642198732532,456.85468827,147.14,147.13,11.042]
[1642198732732,456.85468827,147.14,147.13,0.85]
[1642198733132,456.85468827,147.14,147.13,0.6]
[1642198734941,450.8,147.14,147.13,0.6]
[1642198735539,456.85468827,147.14,147.13,0.6]
[1642198744045,457.11468827,147.14,147.13,0.6]
[1642198746946,463.11468827,147.14,147.13,0.6]
[1642198747346,457.11468827,147.14,147.13,0.6]
[1642198760801,456.85468827,147.14,147.13,0.6]
[1642198761904,450.8,147.14,147.13,0.6]
[1642198763204,453.8321643,147.14,147.13,0.6]
[1642198764409,454.0921643,147.14,147.13,0.6]
[1642198765613,457.11468827,147.14,147.13,0.6]
[1642198768714,454.0921643,147.14,147.13,0.6]
[1642198768916,451.06,147.14,147.13,0.6]
[1642198771116,451.06,147.14,147.13,2.46725606]
[1642198772017,451.06,147.14,147.13,0.6]
[1642198772218,454.08252397,147.14,147.13,0.6]
[1642198772418,457.11468827,147.14,147.13,0.6]
[1642198781055,451.06,147.14,147.13,0.6]
[1642198783555,454.0921643,147.14,147.13,0.6]
[1642198784656,457.11468827,147.14,147.13,0.6]
[1642198785758,457.11468827,147.14,147.11,422.61479326]
[1642198786059,2.718,147.13,147.11,422.61479326]
[1642198786265,453.518,147.13,147.11,422.61479326]
[1642198786458,3.02252397,147.12,147.11,422.61479326]
[1642198786958,3.27252397,147.12,147.11,422.61479326]
[1642198787360,3.27252397,147.12,147.11,420.7475372]
[1642198787761,454.07252397,147.12,147.11,420.7475372]
[1642198787963,454.07252397,147.12,147.07,22.40685606]
[1642198788263,454.07252397,147.12,147.07,12.06375606]
[1642198789165,454.07252397,147.12,147.07,1.86725606]
[1642198789967,454.33252397,147.12,147.07,1.86725606]
[1642198790165,2.719,147.11,147.07,1.86725606]
[1642198790364,453.519,147.11,147.07,1.86725606]
[1642198790565,453.769,147.11,147.07,1.86725606]
[1642198792266,450.8,147.11,147.07,1.86725606]
[1642198795093,477.3382,147.14,147.07,1.86725606]
[1642198795285,477.3382,147.14,147.08,1.86725606]
[1642198796487,483.3382,147.14,147.08,1.86725606]
[1642198796689,68.02,147.13,147.08,1.86725606]
[1642198796888,2.719,147.12,147.08,1.86725606]
[1642198797087,8.969,147.12,147.07,1.86725606]
[1642198797289,33.4386,147.12,147.07,1.86725606]
[1642198797487,484.2386,147.12,147.07,1.86725606]
[1642198797690,494.4384,147.12,147.07,1.86725606]
[1642198797887,494.4384,147.12,147.04,3.64215575]
[1642198797888,494.4384,147.12,147.06,1.86725606]
[1642198798792,494.4384,147.12,147.05,1.86725606]
[1642198799089,491.7194,147.12,147.05,1.86725606]
[1642198799289,2.719,147.11,147.05,1.86725606]
[1642198799488,459.769,147.11,147.05,1.86725606]
[1642198799693,453.769,147.11,147.05,1.86725606]
[1642198799895,454.029,147.11,147.06,1.86725606]
[1642198801997,460.029,147.11,147.06,1.86725606]
[1642198802400,459.769,147.11,147.06,1.86725606]
[1642198802601,459.769,147.11,147.04,1.86725606]
[1642198802802,24.1146,147.1,147.04,1.86725606]
[1642198803000,475.1646,147.1,147.04,1.86725606]
[1642198803600,475.1646,147.1,147.05,1.86725606]
[1642198804601,481.1646,147.1,147.05,1.86725606]
[1642198806026,481.4246,147.1,147.04,1.86725606]
[1642198807229,481.4246,147.1,147.04,2.11725606]
[1642198807931,481.1746,147.1,147.04,2.11725606]
[1642198809033,481.1746,147.1,147.05,1.86725606]
[1642198809433,481.4246,147.1,147.05,1.86725606]